[Event "Live Chess"]
[Site "Chess.com"]
[Date "2024.06.02"]
[Round "-"]
[White "MaksymYurii"]
[Black "GrahamCuthbert"]
[Result "0-1"]
[WhiteElo "946"]
[BlackElo "1037"]
[TimeControl "300"]
[EndTime "17:10:08 PDT"]
[Termination "GrahamCuthbert won by checkmate"]

1. e4 {[%clk 0:04:58.2]} 1... c6 {[%clk 0:04:59.1]} 2. Nf3 {[%clk 0:04:56.6]}
2... d5 {[%clk 0:04:58.3]} 3. e5 {[%clk 0:04:53.9]} 3... Bg4 {[%clk 0:04:56.5]}
4. d4 {[%clk 0:04:52.2]} 4... c5 {[%clk 0:04:55]} 5. c3 {[%clk 0:04:49.4]} 5...
e6 {[%clk 0:04:53.2]} 6. Be2 {[%clk 0:04:42.9]} 6... Nc6 {[%clk 0:04:51.2]} 7.
h3 {[%clk 0:04:40.6]} 7... Bxf3 {[%clk 0:04:49.8]} 8. Bxf3 {[%clk 0:04:39.4]}
8... Qb6 {[%clk 0:04:44]} 9. Be3 {[%clk 0:03:45.3]} 9... Nge7 {[%clk 0:04:25.9]}
10. b3 {[%clk 0:03:15.2]} 10... Nf5 {[%clk 0:04:19.7]} 11. dxc5 {[%clk
0:03:10.9]} 11... Bxc5 {[%clk 0:04:12.6]} 12. Bxc5 {[%clk 0:03:09.8]} 12... Qxc5
{[%clk 0:04:09.9]} 13. O-O {[%clk 0:03:05.9]} 13... Nxe5 {[%clk 0:04:03.3]} 14.
Be2 {[%clk 0:02:57.4]} 14... Ng3 {[%clk 0:03:51.1]} 15. b4 {[%clk 0:02:39]}
15... Qb6 {[%clk 0:03:31.1]} 16. Qa4+ {[%clk 0:02:36.5]} 16... Nc6 {[%clk
0:03:20.7]} 17. Re1 {[%clk 0:02:26.3]} 17... Nxe2+ {[%clk 0:03:04.9]} 18. Rxe2
{[%clk 0:02:23.4]} 18... O-O {[%clk 0:03:03.6]} 19. Na3 {[%clk 0:02:13.9]} 19...
Rfc8 {[%clk 0:02:52.5]} 20. Re3 {[%clk 0:01:31]} 20... Ne7 {[%clk 0:02:49.1]}
21. Rae1 {[%clk 0:01:29]} 21... Nf5 {[%clk 0:02:45.3]} 22. Rf3 {[%clk
0:01:24.4]} 22... g6 {[%clk 0:02:26.6]} 23. g4 {[%clk 0:01:05.4]} 23... Nd6
{[%clk 0:02:18.3]} 24. Rf6 {[%clk 0:00:43.8]} 24... Ne4 {[%clk 0:02:07.5]} 25.
Rf4 {[%clk 0:00:33.2]} 25... Rxc3 {[%clk 0:01:57]} 26. Nb1 {[%clk 0:00:30.3]}
26... Rg3+ {[%clk 0:01:51.6]} 27. Kh2 {[%clk 0:00:26.9]} 27... Rd3 {[%clk
0:01:26.4]} 28. f3 {[%clk 0:00:16.5]} 28... Qf2+ {[%clk 0:01:15.5]} 29. Kh1
{[%clk 0:00:11.3]} 29... Qxe1+ {[%clk 0:01:11.5]} 30. Kh2 {[%clk 0:00:10]} 30...
Qf2+ {[%clk 0:01:09.1]} 31. Kh1 {[%clk 0:00:08.7]} 31... Ng3# {[%clk 0:01:05.5]}
0-1

[Event "Live Chess"]
[Site "Chess.com"]
[Date "2024.06.02"]
[Round "-"]
[White "Sir_Sigmund"]
[Black "mychess51"]
[Result "1-0"]
[WhiteElo "1871"]
[BlackElo "1763"]
[TimeControl "300"]
[EndTime "17:10:14 PDT"]
[Termination "Sir_Sigmund won on time"]

1. e4 {[%clk 0:04:58.1]} 1... e6 {[%clk 0:04:57]} 2. Nf3 {[%clk 0:04:56]} 2...
d5 {[%clk 0:04:55]} 3. e5 {[%clk 0:04:55.7]} 3... c5 {[%clk 0:04:53.6]} 4. b4
{[%clk 0:04:55.4]} 4... cxb4 {[%clk 0:04:50.1]} 5. a3 {[%clk 0:04:55]} 5... Nc6
{[%clk 0:04:45.1]} 6. axb4 {[%clk 0:04:53.7]} 6... Bxb4 {[%clk 0:04:43.1]} 7. c3
{[%clk 0:04:53.1]} 7... Be7 {[%clk 0:04:40.8]} 8. d4 {[%clk 0:04:52.7]} 8... Bd7
{[%clk 0:04:32.3]} 9. Bd3 {[%clk 0:04:46.7]} 9... a6 {[%clk 0:04:31.1]} 10. O-O
{[%clk 0:04:45]} 10... Na7 {[%clk 0:04:28.5]} 11. Qc2 {[%clk 0:04:22.3]} 11...
h6 {[%clk 0:04:08.1]} 12. Ba3 {[%clk 0:04:19.1]} 12... Bxa3 {[%clk 0:04:01.4]}
13. Nxa3 {[%clk 0:04:19]} 13... Ne7 {[%clk 0:03:58.4]} 14. Rfb1 {[%clk
0:04:10.8]} 14... b5 {[%clk 0:03:51.2]} 15. Qd2 {[%clk 0:04:05.6]} 15... Nac6
{[%clk 0:03:38.2]} 16. Nc2 {[%clk 0:03:59.1]} 16... Na5 {[%clk 0:03:28]} 17. Ne3
{[%clk 0:03:49.3]} 17... Nec6 {[%clk 0:03:05.8]} 18. h4 {[%clk 0:03:39.4]} 18...
Qc7 {[%clk 0:02:31.9]} 19. g4 {[%clk 0:03:28.3]} 19... Qc8 {[%clk 0:02:13.3]}
20. Kg2 {[%clk 0:03:15.9]} 20... Qc7 {[%clk 0:02:01.6]} 21. g5 {[%clk
0:03:07.5]} 21... Nc4 {[%clk 0:01:47.3]} 22. Nxc4 {[%clk 0:02:58.7]} 22... dxc4
{[%clk 0:01:45.3]} 23. Be4 {[%clk 0:02:57.4]} 23... Ra7 {[%clk 0:01:42.7]} 24.
Rd1 {[%clk 0:02:40]} 24... Ne7 {[%clk 0:01:41.2]} 25. Qf4 {[%clk 0:02:27.2]}
25... Bc6 {[%clk 0:01:31.9]} 26. gxh6 {[%clk 0:02:17.2]} 26... Rxh6 {[%clk
0:01:25.2]} 27. Ng5 {[%clk 0:02:12.5]} 27... Bxe4+ {[%clk 0:01:20.2]} 28. Nxe4
{[%clk 0:02:09.9]} 28... Nd5 {[%clk 0:01:06.6]} 29. Qf3 {[%clk 0:01:50.2]} 29...
Rg6+ {[%clk 0:00:58.9]} 30. Kh3 {[%clk 0:01:42.9]} 30... Qe7 {[%clk 0:00:51.6]}
31. Nd6+ {[%clk 0:01:37.3]} 31... Kf8 {[%clk 0:00:49.5]} 32. Rg1 {[%clk
0:01:34.8]} 32... Rh6 {[%clk 0:00:46.6]} 33. Qg4 {[%clk 0:01:27]} 33... g6
{[%clk 0:00:38.7]} 34. Nc8 {[%clk 0:01:08.6]} 34... Qc7 {[%clk 0:00:32.4]} 35.
Nxa7 {[%clk 0:01:06.3]} 35... Qxa7 {[%clk 0:00:30.5]} 36. f4 {[%clk 0:00:57.1]}
36... Nxc3 {[%clk 0:00:27.5]} 37. Rg3 {[%clk 0:00:53.4]} 37... Nd5 {[%clk
0:00:23.4]} 38. Qg5 {[%clk 0:00:50.5]} 38... Rh5 {[%clk 0:00:18.5]} 39. Qg4
{[%clk 0:00:43.8]} 39... Qxd4 {[%clk 0:00:16.1]} 40. Rf3 {[%clk 0:00:33.3]}
40... Qxa1 {[%clk 0:00:14.4]} 41. Qg3 {[%clk 0:00:25.6]} 41... Qd4 {[%clk
0:00:11.5]} 42. Qg4 {[%clk 0:00:23.6]} 42... Qd1 {[%clk 0:00:08.1]} 43. Qg2
{[%clk 0:00:19.4]} 43... Ke7 {[%clk 0:00:02.8]} 44. Rf2 {[%clk 0:00:16.4]} 44...
Qd3+ {[%clk 0:00:02.2]} 45. Rf3 {[%clk 0:00:15.2]} 45... Qe4 {[%clk 0:00:01.5]}
46. Qg3 {[%clk 0:00:13.6]} 46... Ne3 {[%clk 0:00:00.6]} 47. Rxe3 {[%clk
0:00:12.2]} 47... Qf5+ {[%clk 0:00:00.3]} 48. Qg4 {[%clk 0:00:08.7]} 48... Qc2
{[%clk 0:00:00.2]} 49. Qf3 {[%clk 0:00:05.6]} 1-0

[Event "Live Chess"]
[Site "Chess.com"]
[Date "2024.06.02"]
[Round "-"]
[White "Queensandpawns"]
[Black "AlexanderMatlak"]
[Result "0-1"]
[WhiteElo "2302"]
[BlackElo "2409"]
[TimeControl "300"]
[EndTime "17:10:19 PDT"]
[Termination "AlexanderMatlak won by resignation"]

1. e4 {[%clk 0:04:59.2]} 1... c5 {[%clk 0:04:58.8]} 2. Nf3 {[%clk 0:04:56.6]}
2... d6 {[%clk 0:04:58.2]} 3. c3 {[%clk 0:04:55]} 3... Nf6 {[%clk 0:04:56.6]} 4.
h3 {[%clk 0:04:54.7]} 4... g6 {[%clk 0:04:55]} 5. Bd3 {[%clk 0:04:54.1]} 5...
Bg7 {[%clk 0:04:54.5]} 6. Bc2 {[%clk 0:04:54]} 6... O-O {[%clk 0:04:54]} 7. O-O
{[%clk 0:04:53.9]} 7... Nc6 {[%clk 0:04:53.2]} 8. d4 {[%clk 0:04:53.7]} 8... Nd7
{[%clk 0:04:52.4]} 9. d5 {[%clk 0:04:53.2]} 9... Nce5 {[%clk 0:04:51.7]} 10.
Nbd2 {[%clk 0:04:51.9]} 10... Nxf3+ {[%clk 0:04:50.1]} 11. Nxf3 {[%clk
0:04:51.8]} 11... b5 {[%clk 0:04:49.5]} 12. Bf4 {[%clk 0:04:49.3]} 12... b4
{[%clk 0:04:43.2]} 13. Qd2 {[%clk 0:04:48.1]} 13... a6 {[%clk 0:04:40.8]} 14. c4
{[%clk 0:04:44.7]} 14... Bxb2 {[%clk 0:04:37.4]} 15. Bh6 {[%clk 0:04:40.8]}
15... Bg7 {[%clk 0:04:36.3]} 16. Rae1 {[%clk 0:04:37.7]} 16... Ne5 {[%clk
0:04:16.9]} 17. Nxe5 {[%clk 0:04:34.4]} 17... dxe5 {[%clk 0:04:16.5]} 18. Bxg7
{[%clk 0:04:31.2]} 18... Kxg7 {[%clk 0:04:15.5]} 19. f4 {[%clk 0:04:31.1]} 19...
Qd6 {[%clk 0:04:11.4]} 20. f5 {[%clk 0:04:29.1]} 20... f6 {[%clk 0:04:08.3]} 21.
Re3 {[%clk 0:04:26.1]} 21... a5 {[%clk 0:04:05.6]} 22. Rg3 {[%clk 0:04:25.6]}
22... Bd7 {[%clk 0:04:00.7]} 23. h4 {[%clk 0:04:18.5]} 23... a4 {[%clk
0:03:58.7]} 24. fxg6 {[%clk 0:04:13.1]} 24... hxg6 {[%clk 0:03:56.3]} 25. h5
{[%clk 0:04:13]} 25... g5 {[%clk 0:03:55]} 26. Bd1 {[%clk 0:03:59.1]} 26... b3
{[%clk 0:03:29.3]} 27. axb3 {[%clk 0:03:57.3]} 27... a3 {[%clk 0:03:28.7]} 28.
Bg4 {[%clk 0:03:49.3]} 28... Bxg4 {[%clk 0:03:17]} 29. Rxg4 {[%clk 0:03:49.2]}
29... Kh6 {[%clk 0:03:06.2]} 30. Rf5 {[%clk 0:03:42.6]} 30... Rg8 {[%clk
0:02:56.8]} 31. Qa2 {[%clk 0:03:31.1]} 31... Qb6 {[%clk 0:02:55.9]} 32. Rf2
{[%clk 0:03:28.2]} 32... Qb4 {[%clk 0:02:53.3]} 33. Rg3 {[%clk 0:03:26.9]} 33...
Qe1+ {[%clk 0:02:48.9]} 34. Kh2 {[%clk 0:03:26.4]} 34... Qxf2 {[%clk 0:02:42.6]}
35. Qxf2 {[%clk 0:03:26.3]} 35... a2 {[%clk 0:02:42.2]} 36. Rxg5 {[%clk
0:03:25.9]} 36... Rxg5 {[%clk 0:02:36.7]} 37. Qxa2 {[%clk 0:03:25.7]} 37... Rxa2
{[%clk 0:02:34.9]} 0-1

[Event "Live Chess"]
[Site "Chess.com"]
[Date "2024.06.02"]
[Round "-"]
[White "NAZRIZ1977"]
[Black "wadsy27"]
[Result "0-1"]
[WhiteElo "2146"]
[BlackElo "2582"]
[TimeControl "300"]
[EndTime "17:10:24 PDT"]
[Termination "wadsy27 won by resignation"]

1. c4 {[%clk 0:04:56.7]} 1... e6 {[%clk 0:04:56]} 2. g3 {[%clk 0:04:55.6]} 2...
d5 {[%clk 0:04:55.3]} 3. Bg2 {[%clk 0:04:54.9]} 3... Nf6 {[%clk 0:04:54.9]} 4.
Nf3 {[%clk 0:04:54.1]} 4... Be7 {[%clk 0:04:54.5]} 5. O-O {[%clk 0:04:53.1]}
5... O-O {[%clk 0:04:54.1]} 6. b3 {[%clk 0:04:52.4]} 6... d4 {[%clk 0:04:52.6]}
7. Bb2 {[%clk 0:04:45.5]} 7... c5 {[%clk 0:04:51.1]} 8. b4 {[%clk 0:04:44.7]}
8... a5 {[%clk 0:04:07.7]} 9. b5 {[%clk 0:04:16.4]} 9... Nbd7 {[%clk 0:04:06]}
10. d3 {[%clk 0:04:15]} 10... Bd6 {[%clk 0:04:00.2]} 11. a4 {[%clk 0:04:12]}
11... Nb6 {[%clk 0:03:57.6]} 12. e3 {[%clk 0:04:08.9]} 12... e5 {[%clk
0:03:56.8]} 13. e4 {[%clk 0:04:07.4]} 13... h6 {[%clk 0:03:48.5]} 14. Bc1 {[%clk
0:04:05]} 14... g5 {[%clk 0:03:37.4]} 15. Nxg5 {[%clk 0:04:02.9]} 15... hxg5
{[%clk 0:03:36.3]} 16. Bxg5 {[%clk 0:04:02.5]} 16... Be7 {[%clk 0:03:33.1]} 17.
f4 {[%clk 0:04:00.6]} 17... Nh7 {[%clk 0:03:30.5]} 18. Bxe7 {[%clk 0:03:55.6]}
18... Qxe7 {[%clk 0:03:30.4]} 19. fxe5 {[%clk 0:03:55.4]} 19... Nd7 {[%clk
0:03:26.4]} 20. e6 {[%clk 0:03:38.9]} 20... Qxe6 {[%clk 0:03:22.4]} 21. e5
{[%clk 0:03:38.2]} 21... Nxe5 {[%clk 0:03:19.5]} 22. Bd5 {[%clk 0:03:26.9]}
22... Qh6 {[%clk 0:03:14]} 23. Ra2 {[%clk 0:03:16.9]} 23... Bg4 {[%clk
0:03:05.4]} 24. Qe1 {[%clk 0:03:09.9]} 24... Qe3+ {[%clk 0:03:04.4]} 0-1

[Event "Live Chess"]
[Site "Chess.com"]
[Date "2024.06.02"]
[Round "-"]
[White "StoreySniper"]
[Black "TheSmoulderingMaster"]
[Result "1-0"]
[WhiteElo "2530"]
[BlackElo "1765"]
[TimeControl "300"]
[EndTime "17:10:35 PDT"]
[Termination "StoreySniper won by resignation"]

1. e4 {[%clk 0:04:56.1]} 1... c5 {[%clk 0:04:58.7]} 2. Nc3 {[%clk 0:04:54.7]}
2... e6 {[%clk 0:04:57.3]} 3. f4 {[%clk 0:04:53.4]} 3... Nc6 {[%clk 0:04:56.3]}
4. Nf3 {[%clk 0:04:52.9]} 4... Nf6 {[%clk 0:04:50.8]} 5. e5 {[%clk 0:04:51.5]}
5... Ng8 {[%clk 0:04:47.8]} 6. d4 {[%clk 0:04:48.5]} 6... cxd4 {[%clk
0:04:46.2]} 7. Nxd4 {[%clk 0:04:47.2]} 7... Nge7 {[%clk 0:04:44.6]} 8. Ndb5
{[%clk 0:04:45.4]} 8... d5 {[%clk 0:04:41.8]} 9. Nd6+ {[%clk 0:04:42.5]} 9...
Kd7 {[%clk 0:04:39.6]} 10. Nxf7 {[%clk 0:04:41]} 10... Qe8 {[%clk 0:04:30.4]}
11. Nxh8 {[%clk 0:04:37.9]} 1-0

[Event "Live Chess"]
[Site "Chess.com"]
[Date "2024.06.02"]
[Round "-"]
[White "stevochess11"]
[Black "educatedlad"]
[Result "0-1"]
[WhiteElo "1685"]
[BlackElo "1748"]
[TimeControl "300"]
[EndTime "17:10:38 PDT"]
[Termination "educatedlad won by checkmate"]

1. d4 {[%clk 0:04:56.3]} 1... Nf6 {[%clk 0:04:58.1]} 2. Nf3 {[%clk 0:04:55.5]}
2... g6 {[%clk 0:04:56.9]} 3. Nc3 {[%clk 0:04:54.5]} 3... Bg7 {[%clk 0:04:56.2]}
4. e4 {[%clk 0:04:53]} 4... d6 {[%clk 0:04:51.4]} 5. Be3 {[%clk 0:04:51]} 5...
Ng4 {[%clk 0:04:46.4]} 6. Bg5 {[%clk 0:04:49.3]} 6... h6 {[%clk 0:04:45]} 7. Bh4
{[%clk 0:04:47.9]} 7... g5 {[%clk 0:04:43.5]} 8. Bg3 {[%clk 0:04:47.1]} 8... Nf6
{[%clk 0:04:42.5]} 9. h3 {[%clk 0:04:41.6]} 9... O-O {[%clk 0:04:37.9]} 10. Bd3
{[%clk 0:04:36.8]} 10... Nh5 {[%clk 0:04:34.6]} 11. Bh2 {[%clk 0:04:27]} 11...
c5 {[%clk 0:04:30.9]} 12. Nxg5 {[%clk 0:04:23.5]} 12... hxg5 {[%clk 0:04:21.1]}
13. Qxh5 {[%clk 0:04:22]} 13... cxd4 {[%clk 0:04:20.2]} 14. e5 {[%clk
0:04:16.9]} 14... f5 {[%clk 0:04:11.7]} 15. exf6 {[%clk 0:04:09.1]} 15... Rxf6
{[%clk 0:04:09.4]} 16. Qh7+ {[%clk 0:03:56.6]} 16... Kf8 {[%clk 0:04:06.9]} 17.
Ne4 {[%clk 0:03:54]} 17... Re6 {[%clk 0:04:04]} 18. O-O-O {[%clk 0:03:51.5]}
18... Qa5 {[%clk 0:03:54.7]} 19. Nxg5 {[%clk 0:03:40.3]} 19... Rh6 {[%clk
0:03:49.3]} 20. Qe4 {[%clk 0:03:12.1]} 20... Qxg5+ {[%clk 0:03:47]} 21. Kb1
{[%clk 0:03:07.9]} 21... Re6 {[%clk 0:03:38.9]} 22. Qf3+ {[%clk 0:03:01.5]}
22... Rf6 {[%clk 0:03:36.7]} 23. Qe4 {[%clk 0:02:50.8]} 23... Bf5 {[%clk
0:03:32.6]} 24. Qxb7 {[%clk 0:02:45.9]} 24... Bxd3 {[%clk 0:03:26.6]} 25. Rxd3
{[%clk 0:02:34.4]} 25... Rxf2 {[%clk 0:03:15.9]} 26. Rf3+ {[%clk 0:02:30.2]}
26... Rxf3 {[%clk 0:03:14.4]} 27. Qxf3+ {[%clk 0:02:29.3]} 27... Qf6 {[%clk
0:03:12.2]} 28. Qxa8 {[%clk 0:02:24.4]} 28... d3 {[%clk 0:03:11]} 29. Qxb8+
{[%clk 0:02:22]} 29... Kf7 {[%clk 0:03:10.3]} 30. Qb3+ {[%clk 0:02:20]} 30...
Kg6 {[%clk 0:03:08.2]} 31. Qxd3+ {[%clk 0:02:18.7]} 31... Kh6 {[%clk 0:03:07]}
32. Bg1 {[%clk 0:02:04.5]} 32... Qxb2# {[%clk 0:03:05.7]} 0-1

[Event "Live Chess"]
[Site "Chess.com"]
[Date "2024.06.02"]
[Round "-"]
[White "NAZRIZ1977"]
[Black "Queensandpawns"]
[Result "0-1"]
[WhiteElo "2141"]
[BlackElo "2307"]
[TimeControl "300"]
[EndTime "17:11:31 PDT"]
[Termination "Queensandpawns won by resignation"]

1. d4 {[%clk 0:04:54.4]} 1... e5 {[%clk 0:04:59.3]} 2. e4 {[%clk 0:04:53]} 2...
exd4 {[%clk 0:04:58.4]} 3. c3 {[%clk 0:04:52.5]} 3... Nc6 {[%clk 0:04:58.3]} 4.
Nf3 {[%clk 0:04:50.7]} 4... d5 {[%clk 0:04:56.7]} 5. exd5 {[%clk 0:04:39.9]}
5... Qxd5 {[%clk 0:04:56.6]} 6. Nxd4 {[%clk 0:04:39.2]} 6... Nxd4 {[%clk
0:04:55.4]} 7. Qxd4 {[%clk 0:04:38.5]} 7... Qxd4 {[%clk 0:04:54.7]} 8. cxd4
{[%clk 0:04:38.4]} 8... Bf5 {[%clk 0:04:53.6]} 9. Nc3 {[%clk 0:04:33.5]} 9...
O-O-O {[%clk 0:04:53.1]} 10. Be3 {[%clk 0:04:32.3]} 10... Nf6 {[%clk 0:04:51.6]}
11. O-O-O {[%clk 0:04:31.3]} 11... Bd6 {[%clk 0:04:46.9]} 12. f3 {[%clk
0:04:28.3]} 12... Rhe8 {[%clk 0:04:46.1]} 13. Bf2 {[%clk 0:04:26.4]} 13... Bf4+
{[%clk 0:04:45.5]} 0-1

[Event "Live Chess"]
[Site "Chess.com"]
[Date "2024.06.02"]
[Round "-"]
[White "Silverback7829"]
[Black "ACM42"]
[Result "0-1"]
[WhiteElo "901"]
[BlackElo "2148"]
[TimeControl "300"]
[EndTime "17:12:06 PDT"]
[Termination "ACM42 won by checkmate"]

1. d4 {[%clk 0:04:56.8]} 1... Nf6 {[%clk 0:04:57.1]} 2. Nf3 {[%clk 0:04:55.3]}
2... g6 {[%clk 0:04:52.2]} 3. Nc3 {[%clk 0:04:53.6]} 3... Bg7 {[%clk 0:04:51]}
4. Bf4 {[%clk 0:04:50.3]} 4... O-O {[%clk 0:04:50.1]} 5. e3 {[%clk 0:04:48.3]}
5... d6 {[%clk 0:04:49.1]} 6. Bc4 {[%clk 0:04:46.3]} 6... b6 {[%clk 0:04:43.3]}
7. O-O {[%clk 0:04:44.2]} 7... Bb7 {[%clk 0:04:42.6]} 8. Qd3 {[%clk 0:04:38.6]}
8... Nbd7 {[%clk 0:04:41.5]} 9. Ng5 {[%clk 0:04:23.8]} 9... d5 {[%clk
0:04:35.5]} 10. Bb5 {[%clk 0:04:14.1]} 10... c5 {[%clk 0:04:30]} 11. Bxd7 {[%clk
0:04:10.4]} 11... Qxd7 {[%clk 0:04:26.6]} 12. dxc5 {[%clk 0:04:03.6]} 12... bxc5
{[%clk 0:04:25.3]} 13. Nb5 {[%clk 0:03:52.5]} 13... c4 {[%clk 0:04:21.1]} 14.
Qd4 {[%clk 0:03:45.1]} 14... Qxb5 {[%clk 0:04:15.7]} 15. b3 {[%clk 0:03:29.2]}
15... Ne4 {[%clk 0:04:11.7]} 16. Qd1 {[%clk 0:03:21.6]} 16... e5 {[%clk
0:04:06.5]} 17. Bg3 {[%clk 0:03:07.3]} 17... Nxg5 {[%clk 0:03:56.8]} 18. Rb1
{[%clk 0:02:57.3]} 18... c3 {[%clk 0:03:54.2]} 19. a4 {[%clk 0:02:48.6]} 19...
Qc6 {[%clk 0:03:51.8]} 20. f4 {[%clk 0:02:27.4]} 20... d4 {[%clk 0:03:50]} 21.
fxg5 {[%clk 0:02:24]} 21... Qxg2# {[%clk 0:03:48.6]} 0-1

[Event "Live Chess"]
[Site "Chess.com"]
[Date "2024.06.02"]
[Round "-"]
[White "Tushinskiy"]
[Black "CheckThis4"]
[Result "0-1"]
[WhiteElo "2244"]
[BlackElo "2697"]
[TimeControl "300"]
[EndTime "17:12:15 PDT"]
[Termination "CheckThis4 won by resignation"]

1. d4 {[%clk 0:04:56.6]} 1... Nf6 {[%clk 0:04:57.1]} 2. c3 {[%clk 0:04:56.5]}
2... c5 {[%clk 0:04:52.3]} 3. Nf3 {[%clk 0:04:56.4]} 3... g6 {[%clk 0:04:49.6]}
4. Bf4 {[%clk 0:04:56.3]} 4... Bg7 {[%clk 0:04:47.3]} 5. e3 {[%clk 0:04:54.2]}
5... b6 {[%clk 0:04:42.9]} 6. Bd3 {[%clk 0:04:52.1]} 6... Bb7 {[%clk 0:04:40.9]}
7. Nbd2 {[%clk 0:04:49]} 7... O-O {[%clk 0:04:37.2]} 8. Ke2 {[%clk 0:04:44]}
8... d6 {[%clk 0:04:30.6]} 9. Bg3 {[%clk 0:04:42.6]} 9... Nbd7 {[%clk
0:04:27.3]} 10. Re1 {[%clk 0:04:40.2]} 10... Nh5 {[%clk 0:04:24.1]} 11. Kf1
{[%clk 0:04:38.2]} 11... Nxg3+ {[%clk 0:04:21.3]} 12. hxg3 {[%clk 0:04:38.1]}
12... e5 {[%clk 0:04:18.2]} 13. dxe5 {[%clk 0:04:34.4]} 13... dxe5 {[%clk
0:04:16.6]} 14. Ne4 {[%clk 0:04:26.3]} 14... Qe7 {[%clk 0:04:11.5]} 15. Bc2
{[%clk 0:04:21]} 15... f5 {[%clk 0:03:53.9]} 16. Qd6 {[%clk 0:04:17.4]} 16...
Rae8 {[%clk 0:03:42]} 17. Qxe7 {[%clk 0:04:12.8]} 17... Rxe7 {[%clk 0:03:41.9]}
18. Nd6 {[%clk 0:04:12.3]} 18... Ba6+ {[%clk 0:03:30.3]} 19. Kg1 {[%clk
0:04:10.9]} 19... e4 {[%clk 0:03:26.9]} 20. Ng5 {[%clk 0:04:08.8]} 20... Bf6
{[%clk 0:03:01.9]} 21. Nh3 {[%clk 0:04:01.8]} 21... Kg7 {[%clk 0:02:55.1]} 22.
Rad1 {[%clk 0:03:59.4]} 22... Ne5 {[%clk 0:02:52.6]} 23. Nf4 {[%clk 0:03:57.7]}
23... Rd7 {[%clk 0:02:44]} 24. Ne6+ {[%clk 0:03:55.6]} 24... Kg8 {[%clk
0:02:37.9]} 25. Nxf8 {[%clk 0:03:55.5]} 25... Kxf8 {[%clk 0:02:36.5]} 26. Ba4
{[%clk 0:03:50.2]} 26... Re7 {[%clk 0:02:20.9]} 27. Rd2 {[%clk 0:03:34.7]} 27...
Nd3 {[%clk 0:02:19.5]} 28. Bb5 {[%clk 0:03:29.1]} 28... Bxb5 {[%clk 0:02:15.2]}
29. Nxb5 {[%clk 0:03:27.2]} 29... Nxe1 {[%clk 0:02:13.7]} 30. Rd8+ {[%clk
0:03:26.2]} 30... Kg7 {[%clk 0:02:07.4]} 31. Ra8 {[%clk 0:03:20.2]} 31... Nd3
{[%clk 0:02:05.2]} 32. Nxa7 {[%clk 0:03:18.2]} 32... Nxb2 {[%clk 0:02:01.7]} 33.
Nc8 {[%clk 0:03:17.3]} 33... Rd7 {[%clk 0:01:51]} 34. Nxb6 {[%clk 0:03:15.9]}
34... Rd1+ {[%clk 0:01:49.9]} 35. Kh2 {[%clk 0:03:15.3]} 35... Nd3 {[%clk
0:01:48.8]} 36. Ra7+ {[%clk 0:03:09.2]} 36... Kh6 {[%clk 0:01:44.3]} 37. Rd7
{[%clk 0:03:06.3]} 37... Nxf2 {[%clk 0:01:35.9]} 38. Rxd1 {[%clk 0:03:05]} 38...
Nxd1 {[%clk 0:01:35.8]} 39. a4 {[%clk 0:03:04]} 39... Bxc3 {[%clk 0:01:34.9]}
40. Nc4 {[%clk 0:03:00.5]} 40... Kg5 {[%clk 0:01:25.8]} 41. a5 {[%clk 0:02:59]}
41... Bxa5 {[%clk 0:01:24.2]} 42. Nxa5 {[%clk 0:02:58.9]} 42... Nxe3 {[%clk
0:01:23.4]} 43. Kg1 {[%clk 0:02:58.3]} 43... h5 {[%clk 0:01:14.9]} 44. Kf2
{[%clk 0:02:57.2]} 44... Ng4+ {[%clk 0:01:14.5]} 45. Ke2 {[%clk 0:02:56.6]}
45... h4 {[%clk 0:01:13.7]} 46. gxh4+ {[%clk 0:02:53.5]} 46... Kxh4 {[%clk
0:01:13.6]} 47. Nb3 {[%clk 0:02:51.2]} 47... c4 {[%clk 0:01:11.2]} 48. Nd4
{[%clk 0:02:51.1]} 48... Kg3 {[%clk 0:01:08.5]} 49. Ne6 {[%clk 0:02:50.3]} 49...
c3 {[%clk 0:01:05.2]} 50. Kd1 {[%clk 0:02:47.8]} 50... Kxg2 {[%clk 0:01:01.5]}
51. Nf4+ {[%clk 0:02:44.5]} 51... Kf2 {[%clk 0:00:58]} 52. Nxg6 {[%clk
0:02:44.3]} 52... e3 {[%clk 0:00:57.2]} 53. Nf4 {[%clk 0:02:41.3]} 53... e2+
{[%clk 0:00:47.5]} 54. Nxe2 {[%clk 0:02:39.4]} 54... Ne3+ {[%clk 0:00:47.1]} 55.
Kc1 {[%clk 0:02:38.9]} 55... Kxe2 {[%clk 0:00:45.9]} 0-1